Cogmind - Beta 11 @@@ ROGUE MODE // 2022.03.20 @ 18:43:54 Player: RNGesus Result: Destroyed by H-61 Shepherd with Heavy Assault Cannon Performance ------------- Evolutions (2) 1000 Regions Visited (5) 1000 Robots Destroyed (99) 495 Value Destroyed (2303) 2303 Prototype IDs (2) 40 Alien Tech Used (0) 0 Bonus (0) 0 TOTAL SCORE: 4838 Bonus ------- None Cogmind --------- Core Integrity 0/550 Matter 180/300 Energy 69/100 System Corruption 0% Temperature Cool (0) Movement Rolling (140) Ox4 Location -8/Materials Parts ------- > --- POWER (1) -------- (None) > --- PROPULSION (2) --- Wheel > --- UTILITY (6) ------ Improved Heat Sink Improved Heat Sink High-capacity Storage Unit Hacking Suite > --- WEAPON (2) ------- Autogun Autogun > --- INVENTORY (20) --- Light Nuclear Core Wheel Aerolev Unit Improved VTOL Module Improved VTOL Module Improved VTOL Module Improved VTOL Module Improved VTOL Module Small Storage Unit Medium Storage Unit Medium Armor Plating Hacking Suite Hacking Suite Hacking Suite Hacking Suite Hacking Suite Autogun Mini Grenade Launcher Improved Grenade Launcher Peak State ------------ > --- POWER ------------ Light Nuclear Core > --- PROPULSION ------- Wheel Wheel > --- UTILITY ---------- Improved Heat Sink Improved Heat Sink High-capacity Storage Unit Light Armor Plating Medium Armor Plating Hacking Suite > --- WEAPON ----------- Advanced Beam Cannon Autogun > --- INVENTORY -------- Light Nuclear Core Aerolev Unit Improved VTOL Module Improved VTOL Module Improved VTOL Module Improved VTOL Module Improved VTOL Module Small Storage Unit Medium Storage Unit Medium Armor Plating Hacking Suite Hacking Suite Hacking Suite Hacking Suite Hacking Suite Heavy Assault Rifle Autogun Autogun Mini Grenade Launcher Improved Grenade Launcher [Rating: 28] Favorites ----------- Power Light Nuclear Core Engine Ion Engine Power Core Light Nuclear Core Propulsion Wheel Wheel Wheel Flight Unit Improved VTOL Module Utility High-capacity Storage Unit Device Improved Heat Sink Storage High-capacity Storage Unit Processor Transport Network Coupler Hackware Hacking Suite Protection Hardened Light Armor Plating Weapon Light Assault Rifle Energy Gun Medium Laser Energy Cannon Advanced Beam Cannon Ballistic Gun Light Assault Rifle Launcher Mini Grenade Launcher Build | -11 -10 -10 -9 -9 -8 ------- Run | Scr Mat Min Mat Min Mat Slots Evolved 4 | . . . 2 . 2 Power . | . . . . . . Propulsion . | . . . . . . Utility 4 | . . . 2 . 2 Weapon . | . . . . . . Parts Attached 67 | 6 9 4 13 5 30 Power 7 | 1 1 1 2 . 2 Engine 4 | 1 1 1 . . 1 Core 3 | . . . 2 . 1 Reactor . | . . . . . . Propulsion 15 | 2 2 1 2 1 7 Treads . | . . . . . . Leg . | . . . . . . Wheel 14 | 2 2 1 2 1 6 Hover . | . . . . . . Flight 1 | . . . . . 1 Utility 19 | 1 5 . 3 2 8 Device 3 | . . . . 1 2 Storage 5 | 1 4 . . . . Processor 1 | . . . 1 . . Hackware 1 | . . . . . 1 Protection 9 | . 1 . 2 1 5 Artifact . | . . . . . . Weapon 26 | 2 1 2 6 2 13 Energy Gun 1 | . 1 . . . . Energy Cannon 1 | . . . . . 1 Ballistic Gun 18 | 2 . 2 4 1 9 Ballistic Cannon . | . . . . . . Launcher 6 | . . . 2 1 3 Special Weapon . | . . . . . . Impact Weapon . | . . . . . . Slashing Weapon . | . . . . . . Piercing Weapon . | . . . . . . Special Melee Weapon . | . . . . . . Unidentified Prototypes 2 | . . . . . 2 Parts Lost 33 | . 4 4 5 2 18 Power 7 | . 1 1 2 . 3 Propulsion 11 | . 2 1 2 1 5 Utility 10 | . 1 . . 1 8 Weapon 5 | . . 2 1 . 2 Highest Loss Streak 5 | . 3 4 2 2 5 To Critical Strikes . | . . . . . . Average Slot Usage (%) 86 | . 84 85 79 90 90 Engine 5 | . 14 14 . . 2 Core 5 | . . . 9 11 4 Wheel 21 | . 24 28 22 21 16 Device 3 | . . . . 2 11 Storage 11 | . 13 14 11 11 9 Protection 14 | . 3 . 13 22 23 Energy Gun 2 | . 8 6 . . . Ballistic Gun 20 | . 19 21 21 22 17 Naked Turns . | . . . . . . Heaviest Build 64 | 11 52 49 61 61 64 Greatest Support 32 | 26 26 26 26 26 32 Greatest Overweight (x) 16 | 1 16 2 3 3 5 Average Overweight (x) 1 | . . 1 2 2 1 Largest Inventory Capacity 20 | 8 20 20 20 20 20 Average Capacity 18 | 6 16 20 20 20 20 Most Carried 20 | 2 11 11 18 18 20 Average Carried 13 | . 5 10 12 17 18 Final Capacity 20 | 8 20 20 20 20 20 Final Carried 19 | 2 11 11 18 16 19 Class Distribution -------------------- 53% | Mutant 46% | Scavenger-Mutant Dominant Class ---------------- Mutant | -10/Materials Mutant | -10/Mines Mutant | -9/Materials Scavenger-Mutant | -9/Mines Scavenger-Mutant | -8/Materials Resources | -11 -10 -10 -9 -9 -8 ----------- Run | Scr Mat Min Mat Min Mat Matter Collected 1994 | 260 403 85 394 125 727 Remotely . | . . . . . . Salvage Created 3588 | . 992 172 773 230 1421 Parts 217 | . 41 9 59 17 91 Haulers Intercepted 8 | . 2 . 3 . 3 Recyclers Shooed 5 | . 1 . . 1 3 Parts Field Recycled . | . . . . . . Retrieved Matter . | . . . . . . Parts Self-Destructed . | . . . . . . Prevented . | . . . . . . Kills | -11 -10 -10 -9 -9 -8 ------- Run | Scr Mat Min Mat Min Mat Combat Hostiles Destroyed 62 | . 14 2 14 8 24 Guns 46 | . 14 2 9 5 16 AOE 16 | . . . 5 3 8 Classes Destroyed 13 | . 7 . 2 1 3 Worker 5 | . . . 3 . 2 Builder 4 | . 1 . 1 . 2 Tunneler 2 | . 1 1 . . . Hauler 8 | . 2 . 3 . 3 Recycler 11 | . 5 1 3 . 2 Operator 6 | . 4 . 2 . . Watcher 1 | . . . . . 1 Swarmer 18 | . 5 . 7 3 3 Grunt 32 | . 9 2 5 4 12 Brawler 1 | . . . . 1 . Sentry 8 | . . . 2 . 6 Specialist 2 | . . . . . 2 Hunter 1 | . . . . . 1 Best Kill Streak 7 | . 4 2 7 3 7 Combat Bots Only 5 | . 4 2 4 3 5 Max Kills in Single Turn 3 | . 1 1 2 3 2 Gunslinging . | . . . . . . Exploded 3 | . . . 2 3 2 Melee . | . . . . . . Uniques/NPCs Destroyed . | . . . . . . Combat | -11 -10 -10 -9 -9 -8 -------- Run | Scr Mat Min Mat Min Mat Damage Taken 3970 | . 592 297 677 170 2234 Core 908 | . 138 97 96 10 567 Absorbed by Shields . | . . . . . . Core Remaining (%) 59 | 100 . 6 . 73 . Volleys Fired 296 | . 99 11 57 14 115 Largest 2 | . 2 2 2 2 2 Hottest 70 | . 70 70 56 50 46 Shots Fired 577 | . 198 21 109 28 221 Gun 563 | . 198 21 103 27 214 Cannon . | . . . . . . Launcher 14 | . . . 6 1 7 Special . | . . . . . . Kinetic 490 | . 126 20 103 27 214 Thermal 73 | . 72 1 . . . Explosive 14 | . . . 6 1 7 Electromagnetic . | . . . . . . Robot Hit Streak 14 | . 12 12 10 7 14 Robot Miss Streak 5 | . 4 2 5 1 4 Penetration Max . | . . . . . . Secondary Targets 4 | . 1 1 . 1 1 Max Gunslinging Chain 1 | . 1 1 . 1 1 Shots Hit Robots 360 | . 117 16 61 20 146 Core Hits 182 | . 46 9 37 15 75 Critical Kills 1 | . . . 1 . . Critical Parts Destroyed 2 | . 2 . . . . Critical Strikes 3 | . 2 . 1 . . Destroy 3 | . 2 . 1 . . Melee Attacks . | . . . . . . Impact . | . . . . . . Slashing . | . . . . . . Piercing . | . . . . . . Sneak Attacks . | . . . . . . Combat Hostiles . | . . . . . . Follow-up Attacks . | . . . . . . Damage Inflicted 5976 | . 1483 232 1310 384 2567 Guns 4636 | . 1480 226 808 222 1900 Cannons . | . . . . . . Explosions 1331 | . . . 502 162 667 Melee . | . . . . . . Ramming 9 | . 3 6 . . . Kinetic 4001 | . 845 226 808 222 1900 Thermal 635 | . 635 . . . . Explosive 1331 | . . . 502 162 667 Electromagnetic . | . . . . . . Impact . | . . . . . . Slashing . | . . . . . . Piercing . | . . . . . . Highest Corruption . | . . . . . . Average Corruption . | . . . . . . Corruption Purged . | . . . . . . Corruption Blocked . | . . . . . . Overload Shots . | . . . . . . Overflow Damage 13 | . . . 10 . 3 Projectiles . | . . . . . . Explosions 13 | . . . 10 . 3 Melee . | . . . . . . Knockbacks . | . . . . . . Impact . | . . . . . . Kinetic . | . . . . . . Secondary . | . . . . . . Self-Inflicted Damage 92 | . 1 2 59 30 . Shots 3 | . . . 2 1 . Rammed 3 | . 1 2 . . . Targets Rammed 3 | . 1 2 . . . Kicked . | . . . . . . Crushed . | . . . . . . Highest Temperature 332 | . 332 39 50 79 19 Average Temperature 59 | . 82 16 15 35 4 Received Heat Transfer 1266 | . 225 165 171 84 621 Effects 1 | . 1 . . . . Energy Bleed 1 | . 1 . . . . Siege Activations . | . . . . . . Robots Corrupted . | . . . . . . Combat Hostiles . | . . . . . . Parts Fried . | . . . . . . Impact Corruptions . | . . . . . . Robots Melted . | . . . . . . Combat Hostiles . | . . . . . . Parts Melted 5 | . 5 . . . . Heat Transferred 1887 | . 1887 . . . . Parts Sabotaged . | . . . . . . Parts Stolen . | . . . . . . Parts Stripped . | . . . . . . Power Chain Reactions . | . . . . . . Missiles Intercepted . | . . . . . . Alert | -11 -10 -10 -9 -9 -8 ------- Run | Scr Mat Min Mat Min Mat Peak Influence 397 | . 275 97 397 251 396 Initial 154 | . . 52 37 154 58 Average 172 | . 164 66 183 186 189 Maximum Alert Level 1 | . 1 . 1 1 1 Low Security (%) 57 | 100 61 100 56 39 58 Level 1 42 | . 38 . 43 60 41 Level 2 . | . . . . . . Level 3 . | . . . . . . Level 4 . | . . . . . . Level 5 . | . . . . . . High Security . | . . . . . . Max Security . | . . . . . . Squads Dispatched 14 | . 4 . 4 . 6 Investigation 2 | . . . 1 . 1 Extermination . | . . . . . . Reinforcement 12 | . 4 . 3 . 5 Assault . | . . . . . . Garrison . | . . . . . . Intercept . | . . . . . . Searches Triggered . | . . . . . . Construction Impeded 2 | . . . 1 . 1 Haulers Reinforced . | . . . . . . Active Scanning Responses . | . . . . . . Cargo Convoy Interrupts . | . . . . . . Stealth | -11 -10 -10 -9 -9 -8 --------- Run | Scr Mat Min Mat Min Mat Distress Signals 10 | . 3 . 3 . 4 Communications Jammed . | . . . . . . Distress Signals . | . . . . . . Times Spotted 124 | . 49 4 31 8 32 Peak Tracking Total 7 | . 7 2 5 3 6 Tactical Retreats 1 | . 1 . . . . Traps | -11 -10 -10 -9 -9 -8 ------- Run | Scr Mat Min Mat Min Mat Traps Triggered 1 | . . . . . 1 Indirectly . | . . . . . . Trap Hack Attempts . | . . . . . . Triggered . | . . . . . . Disarmed . | . . . . . . Reprogrammed . | . . . . . . Reused . | . . . . . . Traps Extracted . | . . . . . . Installed . | . . . . . . Triggered 1 | . . 1 . . . Machines | -11 -10 -10 -9 -9 -8 ---------- Run | Scr Mat Min Mat Min Mat Machines Disabled 4 | . 2 . 1 . 1 Max in Single Turn 1 | . 1 . 1 . 1 Machines Sabotaged . | . . . . . . Garrisons Compromised . | . . . . . . Overloaded Fab Kills . | . . . . . . Hacking | -11 -10 -10 -9 -9 -8 --------- Run | Scr Mat Min Mat Min Mat Machines Accessed 6 | . 1 . 5 . . Terminals 5 | . 1 . 4 . . Fabricators . | . . . . . . Repair Stations . | . . . . . . Recycling Units . | . . . . . . Scanalyzers 1 | . . . 1 . . Garrison Access . | . . . . . . Total Hacks 20 | . 3 . 17 . . Successful 13 | . 3 . 10 . . Failed 7 | . . . 7 . . Catastrophic . | . . . . . . Database Lockouts . | . . . . . . Manual 9 | . 2 . 7 . . Terminals 13 | . 3 . 10 . . Fabricators . | . . . . . . Repair Stations . | . . . . . . Recycling Units . | . . . . . . Scanalyzers 7 | . . . 7 . . Garrison Access . | . . . . . . Terminal Hacks 4 | . 2 . 2 . . Branch Access Points 2 | . 1 . 1 . . Hauler Manifests 2 | . 1 . 1 . . Fabricator Hacks . | . . . . . . Repair Station Hacks . | . . . . . . Recycling Unit Hacks . | . . . . . . Scanalyzer 6 | . . . 6 . . Insert Component 3 | . . . 3 . . Analyze 3 | . . . 3 . . Garrison Access Hacks . | . . . . . . Unauthorized Hacks 3 | . 1 . 2 . . Terminals 3 | . 1 . 2 . . Assimilate 1 | . . . 1 . . Operators 2 | . 1 . 1 . . Fabricators . | . . . . . . Repair Stations . | . . . . . . Recycling Units . | . . . . . . Scanalyzers . | . . . . . . Garrison Access . | . . . . . . Data Cores Recovered . | . . . . . . Used . | . . . . . . Hacking Detections 5 | . 1 . 4 . . Full Trace Events 1 | . . . 1 . . Feedback Events . | . . . . . . Feedback Blocked . | . . . . . . Robot Schematics Acquired . | . . . . . . Robots Built . | . . . . . . Authchips . | . . . . . . Time . | . . . . . . Total Robot Build Rating . | . . . . . . Part Schematics Acquired 3 | . . . 3 . . Parts Built . | . . . . . . Authchips . | . . . . . . Time . | . . . . . . Total Part Build Rating . | . . . . . . Parts Repaired . | . . . . . . Time . | . . . . . . Parts Recycled . | . . . . . . Recycled Matter . | . . . . . . Retrieved Matter . | . . . . . . Retrieved Components . | . . . . . . Parts Scanalyzed 3 | . . . 3 . . Part Schematics Acquired 3 | . . . 3 . . Parts Damaged . | . . . . . . Bothacking | -11 -10 -10 -9 -9 -8 ------------ Run | Scr Mat Min Mat Min Mat Used RIF Installer . | . . . . . . Robots Hacked . | . . . . . . Non-combat . | . . . . . . Combat . | . . . . . . Robot Hacks Applied . | . . . . . . Relay Couplers Released . | . . . . . . Fabnet Peak Effective % . | . . . . . . Robots Rewired . | . . . . . . Allies Hacked . | . . . . . . Hacks Repelled . | . . . . . . Allies | -11 -10 -10 -9 -9 -8 -------- Run | Scr Mat Min Mat Min Mat Total Allies 1 | . . . 1 . . Largest Group 1 | . . . 1 . . Highest-Rated Group 10 | . . . 10 . . Highest-Rated Ally 10 | . . . 10 . . Total Orders . | . . . . . . Ally Attacks . | . . . . . . Total Damage . | . . . . . . Kills . | . . . . . . Allies Corrupted . | . . . . . . Allies Melted . | . . . . . . Intel | -11 -10 -10 -9 -9 -8 ------- Run | Scr Mat Min Mat Min Mat Robot Analysis Total . | . . . . . . Derelict Logs Recovered 3 | . . 1 . 2 . Drone Launches . | . . . . . . Drone Recoveries . | . . . . . . Exploration | -11 -10 -10 -9 -9 -8 ------------- Run | Scr Mat Min Mat Min Mat Turns Passed 3423 | 44 904 156 718 662 939 Spaces Moved 2067 | 39 529 109 432 495 463 Core 34 | 12 22 . . . . Treads . | . . . . . . Legs . | . . . . . . Wheels 2033 | 27 507 109 432 495 463 Hover . | . . . . . . Flight . | . . . . . . Fastest Speed 50 | 50 80 105 105 120 110 Average Speed 114 | 86 106 105 115 124 117 Slowest Speed 850 | 100 850 130 125 125 155 Overloaded Moves . | . . . . . . Propulsion Burnouts . | . . . . . . Robots Hopped . | . . . . . . Cave-ins Triggered . | . . . . . . Exploration Rate (%) 48 | 4 70 33 41 98 43 Regions Visited 5 Branch Regions 2 Pre-discovered Areas 1 | . . . . 1 . Known Exits Taken 2 | . 1 . 1 . . Unknown Exits Taken 3 | 1 . 1 . 1 . Scrap Searched 3 | . . . . 3 . Spaces Dug 11 | . . . . 11 . Terrain Destroyed 82 | . . . 36 11 35 Melee . | . . . . . . Projectile . | . . . . . . AOE 82 | . . . 36 11 35 Terrain Rammed . | . . . . . . Walls Destroyed . | . . . . . . Machines Disabled . | . . . . . . Actions | -11 -10 -10 -9 -9 -8 --------- Run | Scr Mat Min Mat Min Mat Total 2574 | 46 677 129 546 516 660 Wait 66 | . 20 . 22 3 21 Move 2063 | 38 528 109 431 494 463 Hop . | . . . . . . Pick Up 53 | 2 12 4 17 . 18 Fast Attach 26 | 6 5 . 2 1 12 Attach 22 | . 3 4 6 2 7 Detach 5 | . 4 . 1 . . Swap 19 | . 1 . 5 2 11 Drop 22 | . 4 . 5 . 13 Fire 296 | . 99 11 57 14 115 Melee . | . . . . . . Ram 2 | . 1 1 . . . Kick . | . . . . . . Crush . | . . . . . . Escape Stasis . | . . . . . . Rewire . | . . . . . . Trap . | . . . . . . Miscellaneous . | . . . . . . Route ------- -11/Scrapyard -10/Materials (discovered 3 exits: *Mat x2 / *Min) -10/Mines (discovered 2 exits: *Mat / Exi) -9/Materials -9/Mines (discovered 3 exits: [*Mat x2] / [*Zio]) -8/Materials (discovered 2 exits: *Fac x2) History --------- Turn | Location | Event 13 | -11/Scrapyard | Discovered new exit (range 15) 45 | -11/Scrapyard | Entered Materials 53 | -10/Materials | Identified exit to Mines 255 | -10/Materials | Discovered new exit (range 7) 306 | -10/Materials | Build established: Mutant 523 | -10/Materials | Core integrity fell below 50% 557 | -10/Materials | Lost 3 parts (2n1u) 726 | -10/Materials | Discovered new exit (range 11) 949 | -10/Materials | Entered Mines 966 | -10/Mines | Identified exit to Exiles 1024 | -10/Mines | Core integrity fell below 20% 1059 | -10/Mines | Discovered new exit (range 9) 1062 | -10/Mines | Lost 4 parts (1p1n2w) 1105 | -10/Mines | Entered Materials 1105 | -9/Materials | Evolved 2 slots: Utility x2 1436 | -9/Materials | Discovered new exit (range 13) 1747 | -9/Materials | Identified exit to Mines 1823 | -9/Materials | Entered Mines 1854 | -9/Mines | Met a Derelict bent on vengeance 1886 | -9/Mines | Learned 2 Materials zone layouts 1944 | -9/Mines | Learned location of Storage (-7) 2115 | -9/Mines | Build established: Scavenger-Mutant 2295 | -9/Mines | A Derelict revealed a hidden shortcut to a safe place 2338 | -9/Mines | Discovered new exit (range 7) 2466 | -9/Mines | Learned Materials garrison access intel 2473 | -9/Mines | Discovered new exit (range 6) 2485 | -9/Mines | Entered Materials 2485 | -8/Materials | Evolved 2 slots: Utility x2 2486 | -8/Materials | Identified exit to Factory 2487 | -8/Materials | Loaded intel: 1 garrison access location 2972 | -8/Materials | Discovered exit to Factory (range 10) 3156 | -8/Materials | Lost 3 parts (1p1n1u) 3412 | -8/Materials | Core integrity fell below 50% 3417 | -8/Materials | Core integrity fell below 20% 3424 | -8/Materials | Destroyed by H-61 Shepherd with Heavy Assault Cannon Last Messages --------------- 03411_ K-01 Serf destroyed. 03411_ U-05 Engineer destroyed. 03411_ H-61 Shepherd calls for reinforcements. 03411_ ALERT: Hostile activity reported, dispatching reinforcements to area. 03411_ Knocked back. 03414_ X-57 Shotgunner destroyed. 03414_ R-06 Scavenger destroyed. 03415_ Acquired 8 matter. 03415_ U-05 Engineer lays Concrete. 03415_ T-07 Excavator is excavating. 03416_ Knocked back. 03416_ U-05 Engineer lays Concrete. 03416_ X-57 Shotgunner destroyed. 03416_ U-05 Engineer destroyed. 03417_ K-01 Serf collects debris. 03418_ Knocked back. 03420_ Lgt. Armor Plating destroyed. 03421_ K-01 Serf collects debris. 03422_ Knocked back. Map ----- +----------------------------------------------------+ | ?????????????# """ ^ #????######## # | | ?????????????# """ |=!"T" #??????????# [ | | ????????# ### """[ ! %! "" ############ | | ????????# ! * = = * % | | ????????# [ = =[ [= | | ????????# ########+########### * | | ????????????????? # [ + = #############+## | | ??????????????? #! !!| #[%=#????????# ! | | ?????????????"" # ! ! #[! #????????# "" | | ???????????# "T !!! # !! # !=#????????# "" | | ???????????# "" !!! # #!* #????????# "" | | ???????????# "" !! # #*]%#????????# | | ???????????? ######## /]#????????# "" | | ????????? ??### ########??????# *#????????# "" | | ????????# ????##??????????????# #????????# "" | | ????????# ????????????????????# #????????# | | ????????# ??########?????????# ########?####### | | ????????# ??# #?????????# # #???????? | | ????????# ??# """ #??????#### # ]!! #???????? | | ????????# ??# "R" #????? ## # ]!! #???????? | | ????????# ??# " " ###### ?# + ]! #???????? | | ????????# ?## # ??# * # #?##????? | | ???????## ## ! ?? ????#= #= ] #!!##???? | | ???????#* ###%####### ![#####+## !#???? | | ???????# ![*H %* !#???? | | ???????# =[=%[ %!@ k !#???? | | ???????# %![g= = | [%= !#???? | | ???????# =%| * ##+######### """ ##!!##???? | | ???????## # # ??# ??????# """ #?###????? | | ????????# #? ???# ""????# """ #????????? | | ????????# # """?????# """ ??# #????????? | | ????????# +?"Y??????# """ ?# #????????? | | ????????# #?"???????#! ??# """ ????????? | | ????????# #?????????# ?# """ ???????? | | ????????" #?????????# ==[ ?# """ ???????? | | ??????? #?????????# == ?# #??????? | | ??????? #?????????? =[ ?# #??????? | | ?????? ???????????########## #######??????? | | ??????##+###????????????????????? ?????????????? | | ????????????????????????????????? +????????????? | | ????????????????????????????????? ?????????????? | | ?????????????????????????????????????????????????? | | ?????????????????????????????????????????????????? | | ?????????????????????????????????????????????????? | | ?????????????????????????????????????????????????? | | ?????????????????????????????????????????????????? | | ?????????????????????????????????????????????????? | | ?????????????????????????????????????????????????? | | ?????????????????????????????????????????????????? | | ?????????????????????????????????????????????????? | +----------------------------------------------------+ Best States ------------- Heat Dissipation 59 Energy Generation 14 Energy Capacity 265 Matter Stores 300 Matter Capacity 300 Sight Range 16 Terrain Scan Density 10 Armor Coverage 600 Evasion (%) 44 Offensive Hacking 10 Item Schematics ----------------- Hacking Suite | -9/Materials | Scanalyzed Mni. Grenade Launcher | -9/Materials | Scanalyzed Sml. Storage Unit | -9/Materials | Scanalyzed Robot Schematics ------------------ None Fabricated ------------ Nothing Alien Tech Used ----------------- None Achievements -------------- None Challenges ------------ None Game ------ Seed BarrageAnalysisBay Manual? 0 Play Time 00:27:06 Cumulative 279.0 hours Start 2022.03.20 @ 18:12:48 End 2022.03.20 @ 18:43:54 Sessions 1 Manual Loads 0 Difficulty Rogue Special Mode None Game No. 429 Rogue 429 Adventurer 0 Explorer 0 Win Type - Total 5 Types 3/0/1/1/0/0/0/0/0 Lore% 78 Gallery% 78 Achievement% 62 Wizard Run 0 Options --------- ASCII 0 Keyboard 1 Movement Numpad Keybinds 0 Fullscreen 2 Font 24/Smallcaps Map View 76x50 Tactical HUD 1 Map Filters NONE Filters NONE Steam 1 RUN: 2645dc31-096d-4318-b6ed-4c880e3fd1ec